fUSD/lending_fUSD_20250606
["ID","MTS","AMOUNT","RATE_DAILY","PERIOD"]
[364747259,1749227465017,-480.0,0.00030009,5]
[364747260,1749227465027,-480.0,0.00030009,5]
[364747261,1749227465037,-480.0,0.00030009,5]
[364747262,1749227465046,-151.0,0.00030009,7]
[364747263,1749227465056,-480.0,0.00030009,5]
[364747264,1749227465065,-9081.59,0.00030009,5]
[364747265,1749227465074,-967.73,0.00030009,5]
[364747266,1749227465083,-480.0,0.00030009,5]
[364747267,1749227465092,-8912.594129,0.00030009,7]
[364747268,1749227465102,-151.0,0.00030009,7]
[364747269,1749227465114,-480.0,0.00030009,5]
[364747270,1749227465123,-4161.62,0.00030009,5]
[364747271,1749227465132,-480.0,0.00030009,5]
[364747272,1749227465141,-480.0,0.00030009,5]
[364747273,1749227465150,-2214.57,0.00030009,5]
[364747274,1749227465160,-1000.0,0.00030009,5]
[364747275,1749227465169,-480.0,0.00030009,5]
[364747276,1749227465178,-480.0,0.00030009,5]
[364747277,1749227465188,-151.0,0.00030009,7]
[364747278,1749227465197,-855.23,0.00030009,5]
[364747279,1749227465206,-480.0,0.00030009,5]
[364747280,1749227465216,-1052.544835,0.00030009,7]
[364747281,1749227465225,-438.609149,0.00030009,7]
[364747282,1749227465234,-3706.72,0.00030009,5]
[364747283,1749227465243,-480.0,0.00030009,5]
[364747284,1749227465253,-1052.544835,0.00030009,7]
[364747285,1749227465263,-438.609149,0.00030009,7]
[364747286,1749227465273,-492.39314313,0.00030009,5]
[364747287,1749227465282,-480.0,0.00030009,5]
[364747288,1749227465292,-222.603591,0.00030009,7]
[364747289,1749227465301,-480.0,0.00030009,5]
[364747290,1749227465312,-480.0,0.00030009,5]
[364747291,1749227465323,-222.603591,0.00030009,7]
[364747292,1749227465332,-480.0,0.00030009,5]
[364747293,1749227465342,-12889.28,0.00030009,5]
[364747294,1749227465351,-151.0,0.00030009,7]
[364747295,1749227465361,-480.0,0.00030009,5]
[364747296,1749227465371,-192.56007,0.00030009,7]
[364747297,1749227465380,-192.56007,0.00030009,7]
[364747298,1749227465389,-1763.31,0.00030009,5]
[364747299,1749227465399,-480.0,0.00030009,5]
[364747300,1749227465408,-192.56007,0.00030009,7]
[364747301,1749227465417,-480.0,0.00030009,5]
[364747302,1749227465427,-192.56007,0.00030009,7]
[364747303,1749227465436,-480.0,0.00030009,5]
[364747304,1749227465445,-1503.07,0.00030009,5]
[364747305,1749227465455,-480.0,0.00030009,5]
[364747306,1749227465464,-480.0,0.00030009,5]
[364747307,1749227465473,-480.0,0.00030009,5]
[364747308,1749227465483,-480.0,0.00030009,5]
[364747309,1749227465492,-1036.12,0.00030009,5]
[364747310,1749227465502,-497.18335319,0.00030009,5]
[364747311,1749227465512,-500.0,0.00030009,5]
[364747312,1749227465522,-480.0,0.00030009,5]
[364747313,1749227465531,-1295.79,0.00030009,5]
[364747314,1749227465541,-302.41998031,0.00030009,5]
[364747315,1749227465550,-480.0,0.00030009,5]
[364747316,1749227465559,-480.0,0.00030009,5]
[364747317,1749227465569,-480.0,0.00030009,5]
[364747318,1749227465578,-601.38,0.00030009,5]
[364747319,1749227465588,-1374.52,0.00030009,5]
[364747320,1749227465597,-480.0,0.00030009,5]
[364747321,1749227465607,-480.0,0.00030009,5]
[364747322,1749227465617,-480.0,0.00030009,5]
[364747323,1749227465627,-244.578444,0.00030009,7]
[364747324,1749227465636,-244.578444,0.00030009,7]
[364747325,1749227465646,-480.0,0.00030009,5]
[364747326,1749227465655,-244.578444,0.00030009,7]
[364747327,1749227465664,-244.578444,0.00030009,7]
[364747328,1749227465673,-610.9,0.00030009,5]
[364747329,1749227465683,-480.0,0.00030009,5]
[364747330,1749227465693,-491.4751328,0.00030009,5]
[364747331,1749227465702,-489.81319888,0.00030009,5]
[364747332,1749227465712,-15975.47,0.00030009,5]
[364747333,1749227465721,-480.0,0.00030009,5]
[364747334,1749227465730,-480.0,0.00030009,5]
[364747335,1749227465739,-480.0,0.00030009,5]
[364747336,1749227465819,-2179.35,0.00030009,5]
[364747337,1749227465829,-678.4,0.00030009,5]
[364747338,1749227465838,-480.0,0.00030009,5]
[364747339,1749227465848,-480.0,0.00030009,5]
[364747340,1749227465858,-899.39,0.00030009,5]
[364747341,1749227465868,-489.53454566,0.00030009,5]
[364747342,1749227465878,-376.88713618,0.00030009,5]
[364747343,1749227465887,-480.0,0.00030009,5]
[364747344,1749227465897,-1719.81,0.00030009,5]
[364747345,1749227465907,-480.0,0.00030009,5]
[364747346,1749227465916,-480.0,0.00030009,5]
[364747347,1749227465926,-480.0,0.00030009,5]
[364747348,1749227465936,-151.0,0.00030021,7]
[364747349,1749227465945,-151.0,0.00030021,7]
[364747350,1749227465954,-151.0,0.00030021,7]
[364747351,1749227465963,-151.0,0.00030021,7]
[364747352,1749227465973,-182.394775,0.00030021,7]
[364747353,1749227465983,-151.0,0.00030021,7]
[364747354,1749227465993,-182.394775,0.00030021,7]
[364747355,1749227466002,-151.0,0.00030021,7]
[364747356,1749227466012,-480.0,0.00030021,5]
[364747357,1749227466021,-511.495411,0.00030021,7]
[364747358,1749227466030,-480.0,0.00030021,5]
[364747359,1749227466040,-480.0,0.00030021,5]
[364747360,1749227466050,-480.0,0.00030021,5]
[364747361,1749227466058,-480.0,0.00030021,5]
[364747362,1749227466067,-480.0,0.00030021,5]
[364747363,1749227466077,-480.0,0.00030021,5]
[364747364,1749227466086,-1889.97,0.00030021,5]
[364747365,1749227466095,-480.0,0.00030021,5]
[364747366,1749227466104,-550.09,0.00030021,5]
[364747367,1749227466114,-151.0,0.00030021,7]
[364747368,1749227466123,-527.97,0.00030021,5]
[364747369,1749227466132,-1427.75,0.00030021,5]
[364747370,1749227466141,-234.182485,0.00030021,7]
[364747371,1749227466151,-623.29,0.00030021,5]
[364747372,1749227466159,-234.182485,0.00030021,7]
[364747373,1749227466169,-837.05,0.00030021,5]
[364747374,1749227466177,-1092.01,0.00030021,5]
[364747375,1749227466186,-777.13,0.00030021,5]
[364747376,1749227466195,-480.0,0.00030021,5]
[364747377,1749227466204,-480.0,0.00030021,5]
[364747378,1749227466212,-280.057545,0.00030021,7]
[364747379,1749227466221,-1290.81,0.00030021,5]
[364747380,1749227466230,-806.85,0.00030021,5]
[364747381,1749227466239,-280.057545,0.00030021,7]
[364747382,1749227466248,-216.821142,0.00030021,7]
[364747383,1749227466257,-216.821142,0.00030021,7]
[364747384,1749227466266,-1309.04,0.00030021,5]
[364747385,1749227466274,-480.0,0.00030021,5]
[364747386,1749227466284,-1370.18,0.00030021,5]
[364747387,1749227466293,-609.3,0.00030021,5]
[364747388,1749227466302,-950.48,0.00030021,5]
[364747389,1749227466310,-623.18,0.00030021,5]
[364747390,1749227466319,-480.0,0.00030021,5]
[364747391,1749227466328,-756.68,0.00030021,5]
[364747392,1749227466337,-151.0,0.00030021,7]
[364747393,1749227466346,-768.9,0.00030021,5]
[364747394,1749227466354,-480.0,0.00030021,5]
[364747395,1749227466364,-151.0,0.00030021,7]
[364747396,1749227466373,-996.18,0.00030021,5]
[364747397,1749227466382,-480.0,0.00030021,5]
[364747398,1749227466391,-491.53831758,0.00030021,5]
[364747399,1749227466400,-480.0,0.00030021,5]
[364747400,1749227466409,-389.90276,0.00030021,7]
[364747401,1749227466418,-565.52,0.00030021,5]
[364747402,1749227466427,-480.0,0.00030021,5]
[364747403,1749227466435,-389.90276,0.00030021,7]
[364747404,1749227466446,-480.0,0.00030021,5]
[364747405,1749227466454,-516.62105,0.00030021,7]
[364747406,1749227466463,-480.0,0.00030021,5]
[364747407,1749227466472,-516.62105,0.00030021,7]
[364747408,1749227466481,-480.0,0.00030021,5]
[364747409,1749227466490,-1078.44,0.00030021,5]
[364747410,1749227466499,-480.0,0.00030021,5]
[364747411,1749227466507,-1292.15,0.00030021,5]
[364747412,1749227466516,-754.92,0.00030021,5]
[364747413,1749227466526,-480.0,0.00030021,5]
[364747414,1749227466536,-916.88,0.00030021,5]
[364747415,1749227466545,-871.22,0.00030021,5]
[364747416,1749227466555,-764.22,0.00030021,5]
[364747417,1749227466564,-886.9,0.00030021,5]
[364747418,1749227466574,-937.02,0.00030021,5]
[364747419,1749227466583,-318.88274585,0.00030021,5]
[364747420,1749227466591,-340.31,0.00030021,5]
[364747421,1749227466601,-151.0,0.00030021,7]
[364747422,1749227466610,-1986.83,0.00030021,5]
[364747423,1749227466619,-601.23,0.00030021,5]
[364747424,1749227466628,-861.69,0.00030021,5]
[364747425,1749227466638,-480.0,0.00030021,5]
[364747426,1749227466647,-480.0,0.00030021,5]
[364747427,1749227466656,-480.0,0.00030021,5]
[364747428,1749227466665,-213.858254,0.00030021,7]
[364747429,1749227466675,-213.858254,0.00030021,7]
[364747430,1749227466684,-530.48,0.00030021,5]
[364747431,1749227466694,-987.41,0.00030021,5]
[364747432,1749227466704,-1068.48,0.00030021,5]
[364747433,1749227466717,-822.76,0.00030021,5]
[364747434,1749227466727,-1114.8,0.00030021,5]
[364747435,1749227466736,-1960.08,0.00030021,5]
[364747436,1749227466745,-202.911024,0.00030021,7]
[364747437,1749227466755,-822.84,0.00030021,5]
[364747438,1749227466764,-202.911024,0.00030021,7]
[364747439,1749227466773,-480.0,0.00030021,5]
[364747440,1749227466782,-4079.81,0.00030021,5]
[364747441,1749227466792,-536.39,0.00030021,5]
[364747442,1749227466802,-1694.55,0.00030021,5]
[364747443,1749227466814,-2260.71,0.00030021,5]
[364747444,1749227466824,-151.0,0.00030021,7]
[364747445,1749227466834,-480.0,0.00030021,5]
[364747446,1749227466844,-1968.73,0.00030021,5]
[364747447,1749227466854,-1126.23,0.00030021,5]
[364747448,1749227466865,-8912.594129,0.00030021,7]
[364747449,1749227466874,-8912.594129,0.00030021,7]
[364747450,1749227466884,-151.0,0.00030021,7]
[364747451,1749227466894,-2346.11,0.00030021,5]
[364747452,1749227466904,-608.71,0.00030021,5]
[364747453,1749227466913,-1228.25,0.00030021,5]
[364747454,1749227466923,-151.0,0.00030021,7]
[364747455,1749227466933,-1052.544835,0.00030021,7]
[364747456,1749227466943,-438.609149,0.00030021,7]
[364747457,1749227466953,-1052.544835,0.00030021,7]
[364747458,1749227466963,-438.609149,0.00030021,7]
[364747459,1749227466973,-222.603591,0.00030021,7]
[364747460,1749227466982,-222.603591,0.00030021,7]
[364747461,1749227466992,-480.0,0.00030021,5]
[364747462,1749227467001,-151.0,0.00030021,7]
[364747463,1749227467010,-715.37,0.00030021,5]
[364747464,1749227467020,-192.56007,0.00030021,7]
[364747465,1749227467030,-192.560073,0.00030021,7]
[364747466,1749227467039,-552.57,0.00030021,5]
[364747467,1749227467049,-1042.77,0.00030021,5]
[364747468,1749227467058,-480.0,0.00030021,5]
[364747469,1749227467068,-874.37,0.00030021,5]
[364747470,1749227467079,-480.0,0.00030021,5]
[364747471,1749227467088,-458.6407208,0.00030021,5]
[364747472,1749227467097,-480.0,0.00030021,5]
[364747473,1749227467106,-480.0,0.00030021,5]
[364747474,1749227467117,-480.0,0.00030021,5]
[364747475,1749227467127,-643.42,0.00030021,5]
[364747476,1749227467136,-244.578444,0.00030021,7]
[364747477,1749227467145,-244.578437,0.00030021,7]
[364747478,1749227467155,-480.0,0.00030021,5]
[364747479,1749227467165,-501.9438728,0.00030021,5]
[364747480,1749227467174,-480.0,0.00030021,5]
[364747481,1749227467184,-4587.21,0.00030027,5]
[364747482,1749227467194,-1698.9,0.00030027,5]
[364747483,1749227467203,-795.67,0.00030027,5]
[364747484,1749227467213,-1782.25,0.00030027,5]
[364747485,1749227467223,-897.82,0.00030027,5]
[364747486,1749227467233,-950.52,0.00030027,5]
[364747487,1749227467243,-1314.64,0.00030027,5]
[364747488,1749227467254,-808.41,0.00030027,5]
[364747489,1749227467264,-4664.58,0.00030027,5]
[364747490,1749227467274,-573.94,0.00030027,5]
[364747491,1749227467285,-1107.97,0.00030027,5]
[364747492,1749227467295,-4442.11,0.00030027,5]
[364747493,1749227467304,-757.84,0.00030027,5]
[364747494,1749227467314,-480.0,0.00030027,5]
[364747495,1749227467324,-1235.4,0.00030027,5]
[364747496,1749227467334,-879.42,0.00030027,5]
[364747497,1749227467344,-1063.27,0.00030027,5]
[364747498,1749227467355,-707.79,0.00030027,2]
[364747499,1749227467365,-2227.4,0.00030027,5]
[364747500,1749227467375,-884.44,0.00030027,5]
[364747501,1749227467384,-949.13,0.00030027,2]
[364747502,1749227467394,-340.30833747,0.00030027,5]
[364747503,1749227467403,-1185.65,0.00030027,5]
[364747504,1749227467413,-785.68,0.00030027,5]
[364747505,1749227467422,-150.0,0.0003003,7]
[364747506,1749227467431,-151.0,0.00030031,7]
[364747507,1749227467441,-163.855496,0.00030031,7]
[364747508,1749227467451,-151.0,0.00030031,7]
[364747509,1749227467461,-163.855496,0.00030031,7]
[364747510,1749227467471,-151.0,0.00030031,7]
[364747511,1749227467480,-151.0,0.00030031,7]
[364747512,1749227467490,-151.0,0.00030031,7]
[364747513,1749227467499,-182.394775,0.00030031,7]
[364747514,1749227467509,-182.394775,0.00030031,7]
[364747515,1749227467519,-151.0,0.00030031,7]
[364747516,1749227467529,-151.0,0.00030031,7]
[364747517,1749227467539,-151.0,0.00030031,7]
[364747518,1749227467548,-179.960752,0.00030031,7]
[364747519,1749227467558,-511.495411,0.00030031,7]
[364747520,1749227467567,-234.182485,0.00030031,7]
[364747521,1749227467577,-234.182485,0.00030031,7]
[364747522,1749227467587,-234.182485,0.00030031,7]
[364747523,1749227467596,-234.182485,0.00030031,7]
[364747524,1749227467606,-280.057545,0.00030031,7]
[364747525,1749227467618,-280.057545,0.00030031,7]
[364747526,1749227467627,-280.057545,0.00030031,7]
[364747527,1749227467637,-280.057545,0.00030031,7]
[364747528,1749227467646,-216.821142,0.00030031,7]
[364747529,1749227467654,-216.821142,0.00030031,7]
[364747530,1749227467663,-151.0,0.00030031,7]
[364747531,1749227467671,-151.0,0.00030031,7]
[364747532,1749227467679,-151.0,0.00030031,7]
[364747533,1749227467688,-389.90276,0.00030031,7]
[364747534,1749227467697,-389.90276,0.00030031,7]
[364747535,1749227467706,-516.62105,0.00030031,7]
[364747536,1749227467715,-516.62105,0.00030031,7]
[364747537,1749227467723,-151.0,0.00030031,7]
[364747538,1749227467732,-213.858254,0.00030031,7]
[364747539,1749227467742,-213.858254,0.00030031,7]
[364747540,1749227467751,-202.911024,0.00030031,7]
[364747541,1749227467760,-202.911024,0.00030031,7]
[364747542,1749227467769,-151.0,0.00030031,7]
[364747543,1749227467778,-151.0,0.00030031,7]
[364747544,1749227467787,-222.603591,0.00030031,7]
[364747545,1749227467796,-222.603591,0.00030031,7]
[364747546,1749227467806,-151.0,0.00030031,7]
[364747547,1749227467819,-726.86776214,0.00030038,22]
[364747548,1749227467828,-151.0,0.00030041,7]
[364747549,1749227467838,-151.0,0.00030041,7]
[364747550,1749227467847,-151.0,0.00030041,7]
[364747551,1749227467858,-156.300374,0.00030041,7]
[364747552,1749227467870,-209.92382,0.00030041,7]
[364747553,1749227467880,-203.078254,0.00030041,7]
[364747554,1749227467891,-203.078254,0.00030041,7]
[364747555,1749227467902,-151.0,0.00030041,7]
[364747556,1749227467912,-156.114395,0.00030041,7]
[364747557,1749227467922,-163.855496,0.00030041,7]
[364747558,1749227467932,-163.855496,0.00030041,7]
[364747559,1749227467942,-151.0,0.00030041,7]
[364747560,1749227467953,-151.0,0.00030041,7]
[364747561,1749227467962,-151.0,0.00030041,7]
[364747562,1749227467971,-151.0,0.00030041,7]
[364747563,1749227467981,-151.0,0.00030041,7]
[364747564,1749227467991,-151.0,0.00030041,7]
[364747565,1749227468001,-151.0,0.00030041,7]
[364747566,1749227468011,-151.0,0.00030041,7]
[364747567,1749227468021,-182.394775,0.00030041,7]
[364747568,1749227468029,-182.394775,0.00030041,7]
[364747569,1749227468038,-151.0,0.00030041,7]
[364747570,1749227468046,-511.495411,0.00030041,7]
[364747571,1749227468055,-216.821142,0.00030041,7]
[364747572,1749227468064,-216.821142,0.00030041,7]
[364747573,1749227468074,-151.0,0.00030041,7]
[364747574,1749227468083,-151.0,0.00030042,7]
[364747575,1749227468092,-151.0,0.00030043,7]
[364747576,1749227468102,-151.0,0.00030043,7]
[364747577,1749227468114,-151.0,0.00030043,7]
[364747578,1749227468123,-151.0,0.00030043,7]
[364747579,1749227468133,-161.0,0.00030043,7]
[364747580,1749227468143,-151.0,0.00030043,7]
[364747581,1749227468152,-253.2642748,0.00030043,7]
[364747582,1749227468162,-151.0,0.00030043,7]
[364747583,1749227468172,-151.0,0.00030043,7]
[364747584,1749227468181,-152.0,0.00030043,7]
[364747585,1749227468191,-151.0,0.00030043,7]
[364747586,1749227468201,-152.0,0.00030043,7]
[364747587,1749227468212,-151.0,0.00030043,7]
[364747588,1749227468222,-152.0,0.00030043,7]
[364747589,1749227468232,-151.0,0.00030043,7]
[364747590,1749227468242,-152.0,0.00030043,7]
[364747591,1749227468252,-292.95177789,0.00030043,7]
[364747592,1749227468261,-152.0,0.00030043,7]
[364747593,1749227468271,-152.0,0.00030043,7]
[364747594,1749227468281,-152.0,0.00030043,7]
[364747595,1749227468291,-152.0,0.00030043,7]
[364747596,1749227468301,-1052.544835,0.0003005,7]
[364747597,1749227468311,-1052.544834,0.0003005,7]
[364747598,1749227468321,-3114.45,0.0003005,7]
[364747599,1749227468331,-252.647722,0.00030051,7]
[364747600,1749227468341,-151.0,0.00030051,7]
[364747601,1749227468350,-151.0,0.00030051,7]
[364747602,1749227468360,-151.0,0.00030051,7]
[364747603,1749227468373,-152.872388,0.00030051,7]
[364747604,1749227468382,-151.0,0.00030051,7]
[364747605,1749227468392,-151.0,0.00030051,7]
[364747606,1749227468402,-151.0,0.00030051,7]
[364747607,1749227468412,-151.0,0.00030051,7]
[364747608,1749227468421,-245.229361,0.00030051,7]
[364747609,1749227468431,-203.078254,0.00030051,7]
[364747610,1749227468440,-203.078254,0.00030051,7]
[364747611,1749227468450,-157.000071,0.00030051,7]
[364747612,1749227468461,-695.4,0.00030051,5]
[364747613,1749227468470,-480.0,0.00030051,5]
[364747614,1749227468479,-480.0,0.00030051,5]
[364747615,1749227468489,-480.0,0.00030051,5]
[364747616,1749227468499,-163.855496,0.00030051,7]
[364747617,1749227468508,-163.855496,0.00030051,7]
[364747618,1749227468517,-181.384708,0.00030051,7]
[364747619,1749227468528,-470.0,0.00030051,5]
[364747620,1749227468538,-151.0,0.00030051,7]
[364747621,1749227468548,-480.0,0.00030051,5]
[364747622,1749227468558,-151.0,0.00030051,7]
[364747623,1749227468568,-151.0,0.00030051,7]
[364747624,1749227468579,-480.0,0.00030051,5]
[364747625,1749227468589,-480.0,0.00030051,5]
[364747626,1749227468598,-151.0,0.00030051,7]
[364747627,1749227468607,-151.0,0.00030051,7]
[364747628,1749227468618,-151.0,0.00030051,7]
[364747629,1749227468627,-151.0,0.00030051,7]
[364747630,1749227468637,-151.0,0.00030051,7]
[364747631,1749227468647,-151.0,0.00030051,7]
[364747632,1749227468657,-230.735444,0.00030051,7]
[364747633,1749227468667,-182.394775,0.00030051,7]
[364747634,1749227468676,-182.394775,0.00030051,7]
[364747635,1749227468685,-151.0,0.00030051,7]
[364747636,1749227468694,-151.0,0.00030051,7]
[364747637,1749227468704,-511.495411,0.00030051,7]
[364747638,1749227468713,-234.182485,0.00030051,7]
[364747639,1749227468723,-234.182485,0.00030051,7]
[364747640,1749227468732,-280.057545,0.00030051,7]
[364747641,1749227468742,-280.057545,0.00030051,7]
[364747642,1749227468751,-216.821142,0.00030051,7]
[364747643,1749227468761,-216.821142,0.00030051,7]
[364747644,1749227468771,-250.156834,0.00030051,7]
[364747645,1749227468781,-389.90276,0.00030051,7]
[364747646,1749227468791,-389.902768,0.00030051,7]
[364747647,1749227468801,-516.62105,0.00030051,7]
[364747648,1749227468813,-516.621058,0.00030051,7]
[364747649,1749227468824,-151.0,0.00030051,7]
[364747650,1749227468834,-213.858254,0.00030051,7]
[364747651,1749227468844,-213.858258,0.00030051,7]
[364747652,1749227468854,-202.911024,0.00030051,7]
[364747653,1749227468865,-202.911024,0.00030051,7]
[364747654,1749227468875,-225.42706,0.00030051,7]
[364747655,1749227468885,-8912.594129,0.00030051,7]
[364747656,1749227468897,-8912.594123,0.00030051,7]
[364747657,1749227468907,-151.0,0.00030051,7]
[364747658,1749227468918,-151.0,0.00030051,7]
[364747659,1749227468928,-438.609149,0.00030051,7]
[364747660,1749227468938,-438.609145,0.00030051,7]
[364747661,1749227468948,-222.603591,0.00030051,7]
[364747662,1749227468958,-222.603582,0.00030051,7]
[364747663,1749227468969,-151.0,0.00030051,7]
[364747664,1749227468979,-212.757062,0.00030052,7]
[364747665,1749227468990,-151.0,0.00030052,7]
[364747666,1749227469000,-151.0,0.00030052,7]
[364747667,1749227469010,-154.149509,0.00030052,7]
[364747668,1749227469019,-151.0,0.00030052,7]
[364747669,1749227469029,-151.0,0.00030052,7]
[364747670,1749227469039,-151.0,0.00030052,7]
[364747671,1749227469049,-269.849036,0.00030052,7]
[364747672,1749227469059,-218.818087,0.00030052,7]
[364747673,1749227469068,-286.86705,0.00030052,7]
[364747674,1749227469078,-151.0,0.00030052,7]
[364747675,1749227469088,-151.0,0.00030052,7]
[364747676,1749227469098,-203.078254,0.00030052,7]
[364747677,1749227469107,-203.078254,0.00030052,7]
[364747678,1749227469119,-163.855496,0.00030052,7]
[364747679,1749227469129,-163.855496,0.00030052,7]
[364747680,1749227469139,-151.0,0.00030052,7]
[364747681,1749227469150,-259.484578,0.00030052,7]
[364747682,1749227469159,-151.0,0.00030052,7]
[364747683,1749227469169,-154.602926,0.00030053,7]
[364747684,1749227469180,-151.0,0.00030053,7]
[364747685,1749227469190,-151.0,0.00030053,7]
[364747686,1749227469200,-154.495129,0.00030053,7]
[364747687,1749227469209,-151.0,0.00030053,7]
[364747688,1749227469219,-151.0,0.00030053,7]
[364747689,1749227469229,-151.0,0.00030053,7]
[364747690,1749227469239,-151.0,0.00030053,7]
[364747691,1749227469250,-151.0,0.00030053,7]
[364747692,1749227469259,-150.80667436,0.00030058,2]
[364747693,1749227469269,-151.0,0.00030063,7]
[364747694,1749227469279,-151.0,0.00030063,7]
[364747695,1749227469289,-190.5316047,0.00030073,5]
[364747696,1749227469481,-500.0,0.00030073,5]
[364747697,1749227469491,-500.0,0.00030073,5]
[364747698,1749227469501,-675.69071878,0.00030084,2]
[364747699,1749227469511,-2000.0,0.00030099,2]
[364747700,1749227469522,-1503.38942943,0.000301,7]
[364747701,1749227469531,-500.0,0.000301,7]
[364747702,1749227469541,-203.078254,0.000301,7]
[364747703,1749227469551,-203.078254,0.000301,7]
[364747704,1749227469560,-4667.01,0.000301,2]
[364747705,1749227469570,-1565.40622001,0.000301,3]
[364747706,1749227469579,-539.941741,0.00030111,2]
[364747707,1749227469589,-215.0738,0.00030117,2]
[364747708,1749227469598,-211.60439565,0.00030118,2]
[364747709,1749227469608,-1999.999999,0.00030123,3]
[364747710,1749227469619,-301.27966768,0.00030136,2]
[364747711,1749227469628,-600.0,0.00030136,2]
[364747712,1749227469638,-416.03,0.00030137,2]
[364747713,1749227469648,-150.0,0.00030137,7]
[364747714,1749227469658,-150.0,0.00030137,7]
[364747715,1749227469667,-150.0,0.00030137,7]
[364747716,1749227469677,-150.0,0.00030137,7]
[364747717,1749227469688,-150.0,0.00030137,7]
[364747718,1749227469699,-150.0,0.00030137,7]
[364747719,1749227469708,-151.60863483,0.00030137,7]
[364747720,1749227469718,-150.0,0.00030137,7]
[364747721,1749227469727,-150.0,0.00030137,7]
[364747722,1749227469737,-150.0,0.00030137,7]
[364747723,1749227469746,-150.0,0.00030137,7]
[364747724,1749227469755,-288.24941054,0.00030137,5]
[364747725,1749227469765,-151.0,0.00030143,7]
[364747726,1749227469774,-480.0,0.00030152,5]
[364747727,1749227469783,-718.82,0.00030152,5]
[364747728,1749227469793,-1521.37,0.00030152,5]
[364747729,1749227469802,-480.0,0.00030152,5]
[364747730,1749227469816,-1362.09,0.00030152,5]
[364747731,1749227469825,-1701.6,0.00030152,5]
[364747732,1749227469836,-1017.03,0.00030152,5]
[364747733,1749227469846,-573.7,0.00030152,5]
[364747734,1749227469857,-1869.1,0.00030152,5]
[364747735,1749227469867,-742.15,0.00030152,5]
[364747736,1749227469876,-4387.12,0.00030152,5]
[364747737,1749227469886,-1432.56,0.00030152,5]
[364747738,1749227469896,-480.0,0.00030152,5]
[364747739,1749227469906,-889.47,0.00030152,5]
[364747740,1749227469916,-150.0,0.00030156,7]
[364747741,1749227469925,-3114.45,0.00030157,7]
[364747742,1749227469935,-151.0,0.00030158,7]
[364747743,1749227469945,-151.0,0.00030158,7]
[364747744,1749227469954,-182.394775,0.00030158,7]
[364747745,1749227469963,-182.394768,0.00030158,7]
[364747746,1749227469973,-151.0,0.00030158,7]
[364747747,1749227469983,-151.0,0.00030158,7]
[364747748,1749227469992,-511.495405,0.00030158,7]
[364747749,1749227470001,-234.182485,0.00030158,7]
[364747750,1749227470010,-234.182482,0.00030158,7]
[364747751,1749227470020,-73239.6391855,0.00030158,2]
[364747752,1749227470029,-280.057545,0.00030158,7]
[364747753,1749227470040,-280.05754847,0.00030158,7]
[364747754,1749227470049,-216.821142,0.00030158,7]
[364747755,1749227470059,-216.821151,0.00030158,7]
[364747756,1749227470068,-4865.3058308,0.00030158,2]
[364747757,1749227470078,-60815.443803,0.00030158,2]
[364747758,1749227470087,-1687.0412885,0.00030158,2]